bitfinex-derivatives/quotes_BTCF0:USTF0_20250517
["timestamp","ask_amount","ask_price","bid_price","bid_amount"]
[1747494394275,1.32861557,103100.0,103090.0,0.10336998]
[1747494395972,1.32861557,103100.0,103090.0,0.10036998]
[1747494396275,1.54453557,103100.0,103090.0,0.10036998]
[1747494396469,1.54453557,103100.0,103090.0,0.03716998]
[1747494396670,1.55425241,103100.0,103090.0,0.03716998]
[1747494397361,1.67316301,103100.0,103080.0,0.0313]
[1747494397565,0.94215776,103090.0,103080.0,0.0329]
[1747494397760,1.25132083,103090.0,103080.0,0.0329]
[1747494398575,1.25132083,103090.0,103080.0,0.0359]
[1747494398963,1.25132083,103090.0,103080.0,0.0399]
[1747494399186,0.193963,103080.0,103070.0,0.038862]
[1747494399372,1.16519726,103080.0,103070.0,0.103762]
[1747494399575,1.38215726,103080.0,103070.0,0.103762]
[1747494400478,1.03718013,103080.0,103070.0,0.2977438]
[1747494400679,1.00558013,103080.0,103070.0,0.3306438]
[1747494400878,1.00558013,103080.0,103070.0,0.29372213]
[1747494401071,1.00958013,103080.0,103070.0,0.29472213]
[1747494401272,1.13033604,103080.0,103070.0,0.47472213]
[1747494401974,0.67171891,103080.0,103070.0,0.47472213]
[1747494402174,0.55953604,103080.0,103070.0,0.47472213]
[1747494402484,0.46171891,103080.0,103070.0,0.47472213]
[1747494402667,0.55953604,103080.0,103070.0,0.47472213]
[1747494403179,0.43071891,103080.0,103070.0,0.57253926]
[1747494403681,0.32071891,103080.0,103070.0,0.57253926]
[1747494403875,0.32071891,103080.0,103070.0,0.98333926]
[1747494404678,0.199963,103080.0,103070.0,0.98333926]
[1747494407279,0.199963,103080.0,103070.0,1.29333926]
[1747494407466,0.199963,103080.0,103070.0,1.03333926]
[1747494409179,0.199963,103080.0,103070.0,1.25333926]
[1747494409379,0.199963,103080.0,103070.0,1.25878142]
[1747494410083,0.199963,103080.0,103070.0,1.29570309]
[1747494410474,0.199963,103080.0,103070.0,1.29026093]
[1747494410673,0.199963,103080.0,103070.0,1.3357428]
[1747494411178,0.199963,103080.0,103070.0,1.5516228]
[1747494411580,0.199963,103080.0,103070.0,1.2816228]
[1747494411781,0.199963,103080.0,103070.0,1.2316228]
[1747494411981,0.199963,103080.0,103070.0,1.6016228]
[1747494412382,0.199963,103080.0,103070.0,1.2408228]
[1747494412582,0.199963,103080.0,103070.0,1.6016228]
[1747494413574,0.199963,103080.0,103070.0,1.61395245]
[1747494414884,0.199963,103080.0,103070.0,1.24395245]
[1747494415081,0.199963,103080.0,103070.0,1.30395245]
[1747494415288,0.199963,103080.0,103070.0,1.62395245]
[1747494415878,0.219963,103080.0,103070.0,1.62395245]
[1747494416080,0.219963,103080.0,103070.0,1.24395245]
[1747494416779,0.199963,103080.0,103070.0,1.24395245]
[1747494419291,0.230563,103080.0,103070.0,1.24395245]
[1747494419693,0.230563,103080.0,103070.0,1.25383651]
[1747494420994,0.230563,103080.0,103070.0,1.14613532]
[1747494421183,0.230563,103080.0,103070.0,1.58395245]
[1747494422894,0.199963,103080.0,103070.0,1.58395245]
[1747494423680,0.199963,103080.0,103070.0,1.59349722]
[1747494424088,0.231963,103080.0,103070.0,1.59349722]
[1747494424289,0.199963,103080.0,103070.0,1.59349722]
[1747494426589,0.230163,103080.0,103070.0,1.59349722]
[1747494428901,0.230163,103080.0,103070.0,1.23269722]
[1747494429211,0.230163,103080.0,103070.0,1.40349722]
[1747494429402,0.294563,103080.0,103070.0,1.60349722]
[1747494429598,0.294563,103080.0,103070.0,1.59395245]
[1747494429799,0.294563,103080.0,103070.0,1.31395245]
[1747494430303,0.294563,103080.0,103070.0,1.323543]
[1747494430601,0.294563,103080.0,103070.0,1.21613532]
[1747494430797,0.294563,103080.0,103070.0,1.26470113]
[1747494432597,0.294563,103080.0,103070.0,1.166884]
[1747494432805,0.294563,103080.0,103070.0,1.26470113]
[1747494435103,0.294563,103080.0,103070.0,1.61142765]
[1747494438307,0.28510248,103080.0,103070.0,1.61142765]
[1747494438604,0.28510248,103080.0,103070.0,1.86142765]
[1747494441211,0.28510248,103080.0,103070.0,1.90662768]
[1747494441513,0.2885629,103080.0,103070.0,1.90662768]
[1747494441815,0.2885629,103080.0,103070.0,1.91206984]
[1747494444815,0.2885629,103080.0,103070.0,1.90662768]
[1747494445515,0.51413969,103090.0,103080.0,0.193963]
[1747494445706,0.60035039,103090.0,103080.0,1.11758013]
[1747494445906,0.60035039,103090.0,103080.0,1.21539726]
[1747494446107,0.60035039,103090.0,103080.0,1.44087913]
[1747494446311,0.60035039,103090.0,103080.0,1.343062]
[1747494446818,0.56335039,103090.0,103080.0,1.343062]
[1747494447120,0.56735039,103090.0,103080.0,0.973062]
[1747494448017,0.44659448,103090.0,103080.0,0.973062]
[1747494451818,0.44659448,103090.0,103080.0,1.03459023]
[1747494454719,0.2956496,103090.0,103080.0,1.03459023]
[1747494455917,0.2956496,103090.0,103080.0,1.04003239]
[1747494456120,0.2956496,103090.0,103080.0,0.97850416]
[1747494456923,0.2956496,103090.0,103080.0,0.973062]
[1747494457516,0.2956496,103090.0,103080.0,0.993062]
[1747494457825,0.2956496,103090.0,103080.0,0.632262]
[1747494458012,0.2956496,103090.0,103080.0,0.993062]
[1747494460025,0.2956496,103090.0,103080.0,0.99850416]
[1747494461225,0.2956496,103090.0,103080.0,1.0478348]
[1747494462221,0.2956496,103090.0,103080.0,0.95001767]
[1747494462417,0.2956496,103090.0,103080.0,1.0478348]
[1747494465015,0.2956496,103090.0,103080.0,1.04239264]
[1747494466125,0.2956496,103090.0,103080.0,1.0478348]
[1747494468541,0.2956496,103090.0,103080.0,1.06003239]
[1747494469139,0.2956496,103090.0,103080.0,0.69923239]
[1747494469346,0.2956496,103090.0,103080.0,1.06003239]
[1747494470445,0.2956496,103090.0,103080.0,0.69923239]
[1747494470643,0.2956496,103090.0,103080.0,1.06003239]
[1747494471040,0.2956496,103090.0,103080.0,1.27483239]
[1747494472145,0.41640551,103090.0,103080.0,1.27483239]
[1747494472838,0.41640551,103090.0,103080.0,0.91403239]
[1747494473039,0.41640551,103090.0,103080.0,1.27483239]
[1747494475549,0.41640551,103090.0,103080.0,1.34461461]
[1747494477251,0.41640551,103090.0,103080.0,0.98381461]
[1747494477454,0.41640551,103090.0,103080.0,1.34461461]
[1747494479347,0.41640551,103090.0,103080.0,1.24679748]
[1747494479747,0.41640551,103090.0,103080.0,1.34461461]
[1747494490362,0.41640551,103090.0,103080.0,0.98381461]
[1747494490557,0.41640551,103090.0,103080.0,1.34461461]
[1747494492174,0.41640551,103090.0,103080.0,1.57461461]
[1747494493871,0.41640551,103090.0,103080.0,1.32461461]
[1747494494168,0.41640551,103090.0,103080.0,1.37461461]
[1747494496771,0.41640551,103090.0,103080.0,1.15981461]
[1747494496972,0.41640551,103090.0,103080.0,1.58345461]
[1747494498872,0.41640551,103090.0,103080.0,1.15981461]
[1747494499057,0.41640551,103090.0,103080.0,1.58345461]
[1747494499264,0.41640551,103090.0,103080.0,1.15981461]
[1747494499463,0.41640551,103090.0,103080.0,1.58345461]
[1747494501971,0.41640551,103090.0,103080.0,1.48563748]
[1747494502158,0.41640551,103090.0,103080.0,1.58345461]
[1747494504371,0.41640551,103090.0,103080.0,1.22265461]
[1747494504771,0.41640551,103090.0,103080.0,1.58345461]
[1747494516382,0.2956496,103090.0,103080.0,1.53083751]
[1747494516682,0.2956496,103090.0,103080.0,1.62865464]
[1747494519982,0.41640551,103090.0,103080.0,1.27431748]
[1747494520172,0.41640551,103090.0,103080.0,1.58341461]
[1747494520373,0.41640551,103090.0,103080.0,1.43559748]
[1747494520775,0.41640551,103090.0,103080.0,1.01199748]
[1747494520978,0.63422264,103090.0,103080.0,0.97939748]
[1747494521183,0.63422264,103090.0,103080.0,0.61859748]
[1747494521383,0.99502264,103090.0,103080.0,0.58649748]
[1747494521572,0.63422264,103090.0,103080.0,0.55619748]
[1747494521777,0.99502264,103090.0,103080.0,0.55619748]
[1747494522181,0.87426673,103090.0,103080.0,0.51071561]
[1747494522684,1.07426673,103090.0,103080.0,0.51071561]
[1747494522885,1.07426673,103090.0,103080.0,0.54171561]
[1747494524087,1.07426673,103090.0,103080.0,0.4598]
[1747494525982,1.07426673,103090.0,103080.0,0.4288]
[1747494526580,1.07426673,103090.0,103080.0,0.234837]
[1747494526784,1.32302874,103090.0,103080.0,0.234837]
[1747494527084,1.58601161,103090.0,103080.0,0.04939484]
[1747494527989,1.58601161,103090.0,103080.0,0.09186558]
[1747494528181,1.68382874,103090.0,103080.0,0.09186558]
[1747494528486,1.89510874,103090.0,103080.0,0.09186558]
[1747494528785,1.79729161,103090.0,103080.0,0.09186558]
[1747494529174,1.89510874,103090.0,103080.0,0.09186558]
[1747494529989,1.79729161,103090.0,103080.0,0.09186558]
[1747494530790,1.89510874,103090.0,103080.0,0.09186558]
[1747494530987,1.99211675,103090.0,103080.0,0.09186558]
[1747494533285,1.99211675,103090.0,103080.0,0.00544216]
[1747494533480,2.20339675,103090.0,103080.0,0.00544216]
[1747494535487,2.10638874,103090.0,103080.0,0.00544216]
[1747494535688,2.20339675,103090.0,103080.0,0.00544216]
[1747494536590,2.00857161,103090.0,103080.0,0.00544216]
[1747494538590,2.10557962,103090.0,103080.0,0.00544216]
[1747494541495,2.00857161,103090.0,103080.0,0.00544216]
[1747494544100,1.85762673,103090.0,103080.0,0.00544216]
[1747494544300,1.95544386,103090.0,103080.0,0.00544216]
[1747494547298,2.16741117,103090.0,103080.0,0.00544216]
[1747494549306,2.16741117,103090.0,103080.0,0.18544216]
[1747494550104,2.07046958,103090.0,103060.0,0.07032858]
[1747494550309,1.01339893,103070.0,103060.0,0.13642858]
[1747494550505,1.35339893,103070.0,103060.0,0.13642858]
[1747494550702,1.44659893,103070.0,103060.0,0.13642858]
[1747494551112,1.44659893,103070.0,103060.0,0.31642858]
[1747494551300,1.59790314,103070.0,103060.0,0.31642858]
[1747494552799,1.59790314,103070.0,103060.0,0.31742858]
[1747494553608,1.59890314,103070.0,103060.0,0.31742858]
[1747494554016,1.59890314,103070.0,103060.0,0.32046178]
[1747494554720,1.59990314,103070.0,103060.0,0.32046178]
[1747494555017,1.59990314,103070.0,103060.0,0.2834332]
[1747494555412,1.60090314,103070.0,103060.0,0.2824332]
[1747494558222,1.50308601,103070.0,103060.0,0.2824332]
[1747494558612,0.87930314,103070.0,103060.0,0.4764338]
[1747494558819,0.78148601,103070.0,103060.0,0.47643378]
[1747494559009,1.24010314,103070.0,103060.0,0.47643378]
[1747494559207,1.24010314,103070.0,103060.0,0.4734006]
[1747494559417,1.24010314,103070.0,103060.0,0.48187575]
[1747494559825,0.46828601,103070.0,103060.0,0.94049288]
[1747494560620,0.46828601,103070.0,103060.0,0.9404928]
[1747494561122,0.46828601,103070.0,103060.0,0.84267567]
[1747494561924,0.46828601,103070.0,103060.0,0.9404928]
[1747494562224,0.46828601,103070.0,103060.0,0.94049264]
[1747494562924,0.46828601,103070.0,103060.0,0.84267551]
[1747494563126,0.46828601,103070.0,103060.0,0.87970409]
[1747494564025,0.46828601,103070.0,103060.0,0.87970408]
[1747494564427,0.4380688,103070.0,103060.0,0.87970408]
[1747494565631,0.53588593,103070.0,103060.0,0.87970408]
[1747494566433,0.56868593,103070.0,103060.0,0.87970408]
[1747494567227,0.56868593,103070.0,103060.0,0.32490348]
[1747494567528,1.10108593,103070.0,103060.0,0.32490348]
[1747494567933,1.10108593,103070.0,103060.0,0.29160348]
[1747494571536,0.97999893,103070.0,103060.0,0.29160348]
[1747494571736,0.97999893,103070.0,103060.0,0.2545749]
[1747494572933,0.97999893,103070.0,103060.0,0.25457529]
[1747494573826,0.61919893,103070.0,103060.0,0.25457529]
[1747494574131,0.97999893,103070.0,103060.0,0.25457529]
[1747494575235,0.97999893,103070.0,103060.0,0.22147529]
[1747494577241,0.97999893,103070.0,103060.0,0.25307529]
[1747494578342,0.97999893,103070.0,103060.0,0.25307528]
[1747494578741,0.61919893,103070.0,103060.0,0.44707588]
[1747494578941,0.2913818,103070.0,103060.0,0.90569301]
[1747494579239,0.3513818,103070.0,103060.0,0.48037588]
[1747494580042,0.44919893,103070.0,103060.0,0.48037559]
[1747494581436,0.57032091,103070.0,103060.0,0.48037559]
[1747494581940,0.57032091,103070.0,103060.0,0.4803756]
[1747494583346,0.41090378,103070.0,103060.0,0.57819273]
[1747494583846,0.2897818,103070.0,103060.0,0.4803756]
[1747494584847,0.2897818,103070.0,103060.0,0.51740418]
[1747494585647,0.41759893,103070.0,103060.0,0.32340358]
[1747494585947,0.44969893,103070.0,103060.0,0.51740418]
[1747494590747,0.3518818,103070.0,103060.0,0.51740418]
[1747494592955,0.5318818,103070.0,103060.0,0.51740418]
[1747494593155,0.65302765,103070.0,103060.0,0.51740418]
[1747494594757,0.65302765,103070.0,103060.0,0.51740414]
[1747494595659,0.68318601,103070.0,103060.0,0.51740414]
[1747494600054,0.68318601,103070.0,103060.0,0.51437134]
[1747494600255,0.68318601,103070.0,103060.0,0.51740414]
[1747494601467,0.68318601,103070.0,103060.0,0.51740413]
[1747494603166,0.68318601,103070.0,103060.0,0.51740414]
[1747494603469,0.68318601,103070.0,103060.0,0.56679898]
[1747494604370,0.80437941,103070.0,103060.0,0.56679898]
[1747494604969,0.80437941,103070.0,103060.0,0.92759898]
[1747494605159,0.56437941,103070.0,103060.0,1.05541611]
[1747494605471,0.56437941,103070.0,103060.0,0.95759898]
[1747494606670,0.56437941,103070.0,103060.0,0.95759886]
[1747494607371,0.56437941,103070.0,103060.0,0.92057028]
[1747494612575,0.56437941,103070.0,103060.0,1.01838741]
[1747494617584,0.56437941,103070.0,103060.0,0.9883874]
[1747494619380,0.56437941,103070.0,103060.0,0.89057027]
[1747494632303,0.44318601,103070.0,103060.0,0.89057027]
[1747494633804,0.44318601,103070.0,103060.0,0.90206642]
[1747494633994,0.44318601,103070.0,103060.0,0.93326642]
[1747494636710,0.44318601,103070.0,103060.0,0.88847027]
[1747494638704,0.44318601,103070.0,103060.0,0.88847025]
[1747494639210,0.56447426,103070.0,103060.0,0.88847025]
[1747494639910,0.56447426,103070.0,103060.0,0.88847024]
[1747494640514,0.56447426,103070.0,103060.0,0.93327292]
[1747494641311,0.56447426,103070.0,103060.0,1.14419292]
[1747494641915,0.41317005,103070.0,103060.0,1.14419292]
[1747494643115,0.41317005,103070.0,103060.0,0.88847024]
[1747494643613,0.41317005,103070.0,103060.0,0.88847026]
[1747494644418,0.41317005,103070.0,103060.0,0.87615202]
[1747494645717,0.2918818,103070.0,103060.0,0.87615202]
[1747494647618,0.2918818,103070.0,103060.0,0.87615201]
[1747494648719,0.2918818,103070.0,103060.0,0.88847025]
[1747494649315,0.2918818,103070.0,103060.0,0.98628738]
[1747494653123,0.2918818,103070.0,103060.0,0.88847025]
[1747494653315,0.2918818,103070.0,103060.0,0.98628738]
[1747494655425,0.2918818,103070.0,103060.0,0.88847025]
[1747494655816,0.2918818,103070.0,103060.0,0.98628738]
[1747494656227,0.2918818,103070.0,103060.0,0.62548738]
[1747494656427,0.2918818,103070.0,103060.0,0.98628738]
[1747494656819,0.2918818,103070.0,103060.0,0.88847025]
[1747494657728,0.2918818,103070.0,103060.0,0.98628738]
[1747494659133,0.44318601,103070.0,103060.0,0.98628738]
[1747494662629,0.44318601,103070.0,103060.0,1.00628738]
[1747494662835,0.56447724,103070.0,103060.0,1.05103061]
[1747494665335,0.56447724,103070.0,103060.0,0.95321348]
[1747494666238,0.44318601,103070.0,103060.0,0.90847025]
[1747494667239,0.44318601,103070.0,103060.0,0.88847025]
[1747494668440,0.44318601,103070.0,103060.0,0.88847024]
[1747494668638,0.44318601,103070.0,103060.0,0.52767024]
[1747494668842,0.44318601,103070.0,103060.0,0.88847024]
[1747494671135,0.56448786,103070.0,103060.0,0.93313787]
[1747494672443,0.56448786,103070.0,103060.0,0.88847024]
[1747494674647,0.44318601,103070.0,103060.0,0.88847024]
[1747494674947,0.64318601,103070.0,103060.0,0.88847024]
[1747494675138,0.64318601,103070.0,103060.0,1.09915024]
[1747494675640,0.64318601,103070.0,103060.0,1.09915026]
[1747494676947,0.64318601,103070.0,103060.0,0.73835026]
[1747494677147,0.64318601,103070.0,103060.0,1.09915026]
[1747494677848,0.64318601,103070.0,103060.0,0.73835026]
[1747494678049,0.64318601,103070.0,103060.0,1.09915026]
[1747494678549,0.64318601,103070.0,103060.0,1.19696739]
[1747494678950,0.64318601,103070.0,103060.0,0.98628739]
[1747494679846,0.64318601,103070.0,103060.0,0.62548739]
[1747494680052,0.64318601,103070.0,103060.0,1.03097557]
[1747494682454,0.76448745,103070.0,103060.0,1.03097557]
[1747494682844,0.27560565,103070.0,103060.0,1.5087927]
[1747494685753,0.003,103070.0,103060.0,1.61425944]
[1747494686558,0.003,103070.0,103060.0,1.63617941]
[1747494688158,0.54942271,103080.0,103070.0,0.1939817]
[1747494688159,0.50093201,103080.0,103070.0,0.1939817]
[1747494688361,0.55093201,103080.0,103070.0,1.521971]
[1747494689061,0.55093201,103080.0,103070.0,1.701971]
[1747494689246,0.55393201,103080.0,103070.0,1.701971]
[1747494689451,0.55793201,103080.0,103070.0,1.701971]
[1747494691164,0.55793201,103080.0,103070.0,1.351971]
[1747494691349,0.55793201,103080.0,103070.0,1.661971]
[1747494693863,0.55793201,103080.0,103070.0,1.66197096]
[1747494694858,0.50793201,103080.0,103070.0,1.66197096]
[1747494695564,0.50793201,103080.0,103070.0,1.66197095]
[1747494696149,0.50793201,103080.0,103070.0,1.66741311]
[1747494696958,0.50793201,103080.0,103070.0,1.71671041]
[1747494697667,0.31396731,103080.0,103070.0,1.71671041]
[1747494697861,0.22096731,103080.0,103070.0,1.71671041]
[1747494698369,0.25416731,103080.0,103070.0,1.71671041]
[1747494698569,0.22096731,103080.0,103070.0,1.71671041]
[1747494698969,0.21796731,103080.0,103070.0,1.76140966]
[1747494699169,0.21896731,103080.0,103070.0,1.76140966]
[1747494699664,0.25216731,103080.0,103070.0,1.76140966]
[1747494700457,0.24816731,103080.0,103070.0,1.76140966]
[1747494700657,0.25016731,103080.0,103070.0,1.76140966]
[1747494701168,0.0382,103080.0,103070.0,1.76140966]
[1747494701558,0.232163,103080.0,103070.0,1.66359253]
[1747494701759,0.232163,103080.0,103070.0,1.76140966]
[1747494702364,0.232163,103080.0,103070.0,1.34016966]
[1747494702665,0.232163,103080.0,103070.0,1.76108966]
[1747494703464,0.0382,103080.0,103070.0,1.40028966]
[1747494703672,0.0711,103080.0,103070.0,2.12188966]
[1747494703862,0.2650629,103080.0,103070.0,2.12188966]
[1747494705561,0.0711,103080.0,103070.0,2.12188966]
[1747494705761,0.265063,103080.0,103070.0,2.12188966]
[1747494705961,0.265063,103080.0,103070.0,2.02407253]
[1747494706166,0.0711,103080.0,103070.0,2.12188966]
[1747494706475,0.0711,103080.0,103070.0,2.1218895]
[1747494708572,0.0711,103080.0,103070.0,2.02407237]
[1747494708774,0.1037,103080.0,103070.0,2.13425885]
[1747494711380,0.0382,103080.0,103070.0,2.13425885]
[1747494711677,0.0382,103080.0,103070.0,2.23207598]
[1747494711977,0.005,103080.0,103070.0,2.1342589]
[1747494712178,0.0366,103080.0,103070.0,2.1342589]
[1747494712382,0.0366,103080.0,103070.0,2.03644177]
[1747494712567,0.0346,103080.0,103070.0,2.13425866]
[1747494713478,0.0346,103080.0,103070.0,2.2397254]
[1747494713677,0.0346,103080.0,103070.0,2.31059738]
[1747494714090,0.0336,103080.0,103070.0,2.31159738]
[1747494716078,0.0336,103080.0,103070.0,2.31151738]
[1747494716474,0.0336,103080.0,103070.0,2.31147738]
[1747494716974,0.0336,103080.0,103070.0,1.89067738]
[1747494717179,0.0336,103080.0,103070.0,2.31147763]
[1747494717380,0.0336,103080.0,103070.0,2.32117782]
[1747494717677,0.0336,103080.0,103070.0,2.32420967]
[1747494718878,0.3519205,103090.0,103080.0,0.1939629]
[1747494719177,0.3619205,103090.0,103080.0,0.89701189]
[1747494720577,0.3619205,103090.0,103080.0,0.94171114]
[1747494720872,0.3619205,103090.0,103080.0,0.95132938]
[1747494721078,0.3649205,103090.0,103080.0,0.95132938]
[1747494722181,0.48622194,103090.0,103080.0,0.95132938]
[1747494722369,0.51922194,103090.0,103080.0,0.95132938]
[1747494722574,0.61703907,103090.0,103080.0,1.02297401]
[1747494722779,0.61703907,103090.0,103080.0,0.66217401]
[1747494722982,0.51922194,103090.0,103080.0,1.33123114]
[1747494723883,0.51922194,103090.0,103080.0,1.33123127]
[1747494725378,0.51922194,103090.0,103080.0,1.38060134]
[1747494725678,0.51922194,103090.0,103080.0,1.38604351]
[1747494727586,0.51922194,103090.0,103080.0,1.3860435]
[1747494728284,0.51922194,103090.0,103080.0,1.3860035]
[1747494729382,0.51922194,103090.0,103080.0,1.28818637]
[1747494729885,0.51922194,103090.0,103080.0,1.3860035]
[1747494732882,0.51922194,103090.0,103080.0,1.38297151]
[1747494733093,0.51922194,103090.0,103080.0,1.38600348]
[1747494733290,0.51922194,103090.0,103080.0,1.41700348]
[1747494733587,0.50922194,103090.0,103080.0,1.41700348]
[1747494734693,0.50922194,103090.0,103080.0,1.41700345]
[1747494735091,0.50922194,103090.0,103080.0,1.36763338]
[1747494735482,0.50922194,103090.0,103080.0,1.00683338]
[1747494735683,0.50922194,103090.0,103080.0,1.36763338]
[1747494737686,0.50922194,103090.0,103080.0,1.15739338]
[1747494737894,0.50922194,103090.0,103080.0,1.36759338]
[1747494738591,0.50922194,103090.0,103080.0,1.00679338]
[1747494738899,0.50922194,103090.0,103080.0,1.36759338]
[1747494739694,0.50922194,103090.0,103080.0,1.42930596]
[1747494740794,0.50922194,103090.0,103080.0,1.06850596]
[1747494740994,0.50922194,103090.0,103080.0,1.42930596]
[1747494742091,0.50922194,103090.0,103080.0,1.79230596]
[1747494743390,0.21830144,103090.0,103080.0,1.79230596]
[1747494743589,0.12430144,103090.0,103080.0,1.89012309]
[1747494744493,0.12430144,103090.0,103080.0,1.96070743]
[1747494748399,0.12430144,103090.0,103080.0,1.96070747]
[1747494750194,0.12430144,103090.0,103080.0,1.96070746]
[1747494750388,0.003,103090.0,103080.0,1.96070725]
[1747494751194,0.003,103090.0,103080.0,2.32150725]
[1747494751793,0.003,103090.0,103080.0,2.31847549]
[1747494752095,0.003,103090.0,103080.0,2.32150725]
[1747494752297,0.003,103090.0,103080.0,2.22369012]
[1747494756199,0.003,103090.0,103080.0,1.50209012]
[1747494756393,0.003,103090.0,103080.0,2.22369012]
[1747494756994,0.034,103090.0,103080.0,2.22369012]
[1747494757805,0.034,103090.0,103080.0,1.50209012]
[1747494757994,0.034,103090.0,103080.0,2.22369012]
[1747494758703,0.034,103090.0,103080.0,1.50209012]
[1747494759002,0.034,103090.0,103080.0,2.22369012]
[1747494759898,0.034,103090.0,103080.0,2.32150725]
[1747494761012,0.034,103090.0,103080.0,2.22369012]
[1747494761406,0.034,103090.0,103080.0,1.50209012]
[1747494761607,0.0642,103090.0,103080.0,2.22369012]
[1747494761807,0.0946,103090.0,103080.0,2.22369012]
[1747494762802,0.0644,103090.0,103080.0,2.12587299]
[1747494763003,0.0644,103090.0,103080.0,2.22369012]
[1747494763207,0.0949,103090.0,103080.0,2.22369011]
[1747494768019,0.0949,103090.0,103080.0,1.50209011]
[1747494768217,0.0949,103090.0,103080.0,2.22369011]
[1747494769909,0.0949,103090.0,103080.0,2.12587298]
[1747494770111,0.0949,103090.0,103080.0,2.22369011]
[1747494770305,0.0949,103090.0,103080.0,1.80305011]
[1747494770511,0.0949,103090.0,103080.0,2.22301011]
[1747494771220,0.0949,103090.0,103080.0,2.26821014]
[1747494771517,0.2888442,103090.0,103080.0,2.05825014]
[1747494771720,0.0949,103090.0,103080.0,2.26821014]
[1747494774518,0.21620144,103090.0,103080.0,2.26821014]
[1747494775520,0.41014554,103090.0,103080.0,2.26821014]
[1747494776422,0.41014554,103090.0,103080.0,1.96739301]
[1747494776619,0.41014554,103090.0,103080.0,1.54743301]
[1747494776821,0.41014554,103090.0,103080.0,2.06521014]
[1747494777715,0.41014554,103090.0,103080.0,2.02001011]
[1747494777916,0.41014554,103090.0,103080.0,2.02001026]
[1747494781126,0.41014554,103090.0,103080.0,1.81005026]
[1747494781422,0.41014554,103090.0,103080.0,2.01997026]
[1747494783622,0.41014554,103090.0,103080.0,1.85997026]
[1747494784323,0.41014554,103090.0,103080.0,1.85693836]
[1747494784517,0.41014554,103090.0,103080.0,1.76215313]
[1747494784720,0.41014554,103090.0,103080.0,1.85997026]
[1747494785428,0.21620144,103090.0,103080.0,1.89177026]
[1747494786426,0.41014554,103090.0,103080.0,1.89177026]
[1747494787514,0.41014554,103090.0,103080.0,2.24177026]
[1747494788028,0.41014554,103090.0,103080.0,2.24177019]
[1747494789429,0.41014554,103090.0,103080.0,1.88097019]
[1747494789833,0.41014554,103090.0,103080.0,1.88097022]
[1747494790230,0.21620144,103090.0,103080.0,1.88097022]
[1747494793435,0.41014564,103090.0,103080.0,1.88097022]
[1747494793932,0.41014564,103090.0,103080.0,1.53097022]
[1747494802039,0.21620144,103090.0,103080.0,1.53097022]
[1747494802239,0.41014554,103090.0,103080.0,1.53097022]
[1747494806247,0.41014554,103090.0,103080.0,1.17017022]
[1747494806450,0.41014554,103090.0,103080.0,1.53097022]
[1747494808947,0.21620144,103090.0,103080.0,1.53097022]
[1747494809335,0.21620144,103090.0,103080.0,1.91073022]
[1747494813054,0.12430144,103090.0,103080.0,2.00854735]
[1747494813444,0.12430144,103090.0,103080.0,1.49105022]
[1747494813654,0.12430144,103090.0,103080.0,1.91069022]
[1747494813846,0.12430144,103090.0,103080.0,2.00850735]
[1747494814354,0.003,103090.0,103080.0,2.05370738]
[1747494814746,0.003,103090.0,103080.0,1.63406738]
[1747494814945,0.003,103090.0,103080.0,2.05370738]
[1747494815147,1e-07,103090.0,103080.0,2.05370721]
[1747494815348,1e-07,103090.0,103080.0,2.15152434]
[1747494816448,0.07592804,103100.0,103090.0,0.1939442]
[1747494816649,0.36327152,103110.0,103100.0,0.1939253]
[1747494816852,0.36327152,103110.0,103100.0,1.61873125]
[1747494817050,0.36327152,103110.0,103100.0,1.79911046]
[1747494818052,0.002,103120.0,103110.0,0.1939065]
[1747494818248,0.002,103120.0,103110.0,1.20915478]
[1747494818553,0.002,103120.0,103110.0,1.23965478]
[1747494818751,0.0642,103120.0,103110.0,1.24003421]
[1747494819255,0.0642,103120.0,103110.0,1.25465413]
[1747494819655,0.0662,103120.0,103110.0,1.29935338]
[1747494820152,0.0662,103120.0,103110.0,1.30901745]
[1747494820754,0.0361,103120.0,103110.0,1.30901745]
[1747494820946,0.0361,103120.0,103110.0,1.2643182]
[1747494821146,0.0391,103120.0,103110.0,1.2643182]
[1747494824755,0.0713,103120.0,103110.0,1.4739982]
[1747494824959,0.1035,103120.0,103110.0,1.56014452]
[1747494827556,0.2973876,103120.0,103110.0,1.35046452]
[1747494827757,0.2973876,103120.0,103110.0,1.56010452]
[1747494827953,0.2973876,103120.0,103110.0,1.04046452]
[1747494828153,0.2973876,103120.0,103110.0,1.52978452]
[1747494828462,0.2973876,103120.0,103110.0,1.52978459]
[1747494828960,0.2973876,103120.0,103110.0,1.52012052]
[1747494829858,0.2973876,103120.0,103110.0,1.47089405]
[1747494830664,0.1035,103120.0,103110.0,1.47089405]
[1747494830966,0.1035,103120.0,103110.0,1.47633621]
[1747494831766,0.1035,103120.0,103110.0,1.11553621]
[1747494831971,0.2973877,103120.0,103110.0,1.47633621]
[1747494834681,0.2973877,103120.0,103110.0,1.11553621]
[1747494834982,0.2973877,103120.0,103110.0,1.47633621]
[1747494836882,0.2973877,103120.0,103110.0,0.98701621]
[1747494837278,0.2973877,103120.0,103110.0,0.92541621]
[1747494837680,0.2973877,103120.0,103110.0,1.34461621]
[1747494838882,0.2973877,103120.0,103110.0,1.37761621]
[1747494839686,0.2973877,103120.0,103110.0,1.16805621]
[1747494839984,0.2973877,103120.0,103110.0,1.37761621]
[1747494843795,0.2973877,103120.0,103110.0,1.42323603]
[1747494844496,0.2973877,103120.0,103110.0,1.4724625]
[1747494845296,0.2973877,103120.0,103110.0,1.47246264]
[1747494845595,0.3173877,103120.0,103110.0,1.34160551]
[1747494849595,0.3173877,103120.0,103110.0,1.37268526]
[1747494850206,0.3173877,103120.0,103110.0,1.33576541]
[1747494851298,0.43805128,103120.0,103110.0,1.33576541]
[1747494852099,0.43805128,103120.0,103110.0,0.97496541]
[1747494852299,0.43805128,103120.0,103110.0,1.33576541]
[1747494853494,0.43805128,103120.0,103110.0,1.43358254]
[1747494853894,0.41805128,103120.0,103110.0,1.46668254]
[1747494854387,0.41805128,103120.0,103110.0,1.47916865]
[1747494856201,0.41805128,103120.0,103110.0,1.11836865]
[1747494856406,0.41805128,103120.0,103110.0,1.47916865]
[1747494857001,0.12766358,103120.0,103110.0,1.81916865]
[1747494857908,0.007,103120.0,103110.0,1.86436861]
[1747494858504,0.005,103120.0,103110.0,1.86436861]
[1747494858706,0.002,103120.0,103110.0,1.86436861]
[1747494859611,0.002,103120.0,103110.0,1.93399554]
[1747494860410,0.002,103120.0,103110.0,1.71399554]
[1747494860411,0.1958877,103120.0,103110.0,1.71399554]
[1747494860616,0.2284877,103120.0,103110.0,1.71399554]
[1747494861212,0.2284877,103120.0,103110.0,1.71375554]
[1747494861414,0.2284877,103120.0,103110.0,1.29483554]
[1747494861711,0.2914877,103120.0,103110.0,1.29483556]
[1747494861909,0.2914877,103120.0,103110.0,1.71375556]